fUST/lending_fUST_20240111
["ID","MTS","AMOUNT","RATE_DAILY","PERIOD"]
[311167633,1704958240128,-2093.45221107,0.00023,2]
[311167634,1704958240137,-9923.17263833,0.00023,2]
[311167635,1704958240147,-500.0,0.00023288,2]
[311167636,1704958240156,-500.0,0.00023288,2]
[311167637,1704958240165,-500.0,0.00023288,2]
[311167638,1704958240175,-620.18748071,0.00023288,2]
[311167639,1704958240184,-500.0,0.00023288,2]
[311167640,1704958240195,-500.0,0.00023288,2]
[311167641,1704958240205,-500.0,0.00023288,2]
[311167642,1704958240214,-297.81002865,0.00023288,2]
[311167643,1704958240224,-500.0,0.00023288,2]
[311167644,1704958240234,-500.0,0.00023288,2]
[311167645,1704958240243,-500.0,0.00023288,2]
[311167646,1704958240253,-500.0,0.00023288,2]
[311167647,1704958240262,-500.0,0.00023288,2]
[311167648,1704958240272,-500.0,0.00023288,2]
[311167649,1704958240281,-629.80045447,0.00023288,2]
[311167650,1704958240291,-280.64911559,0.00023288,2]
[311167651,1704958240300,-500.0,0.00023288,2]
[311167652,1704958240311,-500.0,0.00023288,2]
[311167653,1704958240320,-500.0,0.00023288,2]
[311167654,1704958240331,-500.0,0.00023288,2]
[311167655,1704958240340,-500.0,0.00023288,2]
[311167656,1704958240351,-500.0,0.00023288,2]
[311167657,1704958240361,-590.45561934,0.00023288,2]
[311167658,1704958240370,-500.0,0.00023288,2]
[311167659,1704958240379,-500.0,0.00023288,2]
[311167660,1704958240388,-500.0,0.00023288,2]
[311167661,1704958240399,-500.0,0.00023288,2]
[311167662,1704958240408,-500.0,0.00023288,2]
[311167663,1704958240418,-500.0,0.00023288,2]
[311167664,1704958240427,-500.0,0.00023288,2]
[311167665,1704958240436,-500.0,0.00023288,2]
[311167666,1704958240446,-166.666666,0.00023456,2]
[311167667,1704958240455,-200.0,0.00023601,7]
[311167668,1704958240464,-348.0,0.00023601,7]
[311167669,1704958240474,-166.666666,0.00023969,2]
[311167670,1704958240484,-497.12734932,0.0002398,5]
[311167671,1704958240493,-614.12133667,0.00024,2]
[311167672,1704958240504,-2293.60196635,0.00024,2]
[311167673,1704958240513,-166.666666,0.00024482,2]
[311167674,1704958240522,-200.0,0.00024658,2]
[311167675,1704958240531,-687.75702701,0.000247,2]
[311167676,1704958240541,-3000.0,0.00025,2]
[311167677,1704958240550,-4711.91259146,0.00025,2]
[311167679,1704958240560,-677.62834989,0.00025,2]
[311167681,1704958240569,-155.24711582,0.00025,2]
[311167682,1704958240578,-295.41689888,0.00025,2]
[311167684,1704958240588,-155.2351122,0.00025,2]
[311167686,1704958240597,-155.0,0.00025,2]
[311167688,1704958240605,-300.0,0.0002501,2]
[311167690,1704958240615,-200.0,0.0002501,2]
[311167692,1704958240624,-2079.89647566,0.0002501,2]
[311167694,1704958240633,-1822.05331204,0.0002501,2]
[311167696,1704958240642,-156.43500893,0.0002501,2]
[311167697,1704958240651,-534.09975459,0.0002501,2]
[311167698,1704958240660,-17723.06701421,0.0002501,7]
[311167699,1704958240670,-187.29551158,0.0002501,2]
[311167700,1704958240679,-154.98450155,0.0002501,2]
[311167702,1704958240688,-155.05361468,0.0002501,2]
[311167704,1704958240697,-722.18762281,0.00025393,2]
[311167706,1704958240707,-200.0,0.00025479,2]
[311167707,1704958240715,-881.89516806,0.00025569,2]
[311167708,1704958240725,-200.0,0.00025961,7]
[311167709,1704958240734,-200.0,0.00025961,7]
[311167710,1704958240743,-327.0,0.00025961,7]
[311167711,1704958240753,-525.99300196,0.00026,2]
[311167712,1704958240762,-3645.64225585,0.00026,2]
[311167713,1704958240771,-984.42014104,0.00026097,2]
[311167714,1704958240780,-50000.0,0.00026306,2]
[311167715,1704958240789,-309.94478728,0.000265,2]
[311167716,1704958240798,-625.10938114,0.00026662,2]
[311167717,1704958240807,-460.6542226,0.00027,2]
[311167718,1704958240816,-309.84518051,0.00027,2]
[311167719,1704958240825,-1083.447915,0.00027352,2]
[311167720,1704958240834,-155.0,0.00027397,2]
[311167721,1704958240933,-500.0,0.00027397,2]
[311167722,1704958240942,-150.45908947,0.00027397,7]
[311167723,1704958240951,-500.0,0.00027534,2]
[311167724,1704958240960,-1500.0,0.000276,2]
[311167725,1704958240969,-500.0,0.00027671,2]
[311167726,1704958240978,-7081.76388505,0.000278,2]
[311167727,1704958240989,-500.0,0.00027808,2]
[311167728,1704958241000,-500.0,0.00027945,2]
[311167729,1704958241009,-932.53731832,0.00027965,2]
[311167730,1704958241019,-620.25546906,0.00027995,2]
[311167731,1704958241030,-3103.68658614,0.00027996,2]
[311167732,1704958241039,-2500.0,0.00028,2]
[311167733,1704958241050,-500.0,0.00028082,2]
[311167734,1704958241059,-500.0,0.00028219,2]
[311167735,1704958241069,-500.0,0.00028356,2]
[311167736,1704958241078,-500.0,0.00028493,2]
[311167737,1704958241088,-9100.04106185,0.000285,4]
[311167738,1704958241097,-150.96980604,0.00028549,7]
[311167739,1704958241106,-932.53731829,0.00028551,2]
[311167740,1704958241116,-1500.0,0.000286,2]
[311167741,1704958241126,-500.0,0.0002863,2]
[311167742,1704958241135,-254.23001474,0.00028701,3]
[311167743,1704958241144,-155.0,0.00028767,2]
[311167744,1704958241154,-500.0,0.00028767,2]
[311167745,1704958241163,-500.0,0.00028904,2]
[311167746,1704958241172,-360.27,0.00028998,2]
[311167747,1704958241182,-360.27,0.00028998,2]
[311167748,1704958241190,-360.27,0.00028998,2]
[311167749,1704958241201,-360.27,0.00028998,2]
[311167750,1704958241211,-360.27,0.00028998,2]
[311167751,1704958241220,-360.27,0.00028998,2]
[311167752,1704958241230,-360.27,0.00028998,2]
[311167753,1704958241239,-360.27,0.00028998,2]
[311167754,1704958241248,-360.27,0.00028998,2]
[311167755,1704958241257,-360.27,0.00028998,2]
[311167756,1704958241267,-500.0,0.00028998,4]
[311167757,1704958241277,-268.6869823,0.00028998,4]
[311167758,1704958241287,-378.50416288,0.00028998,4]
[311167759,1704958241297,-476.22449285,0.00028998,4]
[311167760,1704958241307,-500.0,0.00028998,4]
[311167761,1704958241316,-500.0,0.00028998,4]
[311167762,1704958241326,-426.2336021,0.00028998,4]
[311167763,1704958241335,-500.0,0.00028998,4]
[311167764,1704958241344,-233.17305705,0.00028998,4]
[311167765,1704958241353,-338.86073146,0.00028998,4]
[311167766,1704958241362,-252.4270471,0.00028998,4]
[311167767,1704958241371,-500.0,0.00028998,4]
[311167768,1704958241381,-500.0,0.00028998,4]
[311167769,1704958241390,-440709.77646,0.00028999,2]
[311167770,1704958241400,-155.00620025,0.00029,2]
[311167771,1704958241411,-1983.449916,0.00029,2]
[311167772,1704958241421,-1000.0,0.00029,29]
[311167773,1704958241430,-500.0,0.00029041,2]
[311167774,1704958241440,-150.96980604,0.00029132,4]
[311167775,1704958241449,-932.53731829,0.00029138,2]
[311167776,1704958241459,-500.0,0.00029178,2]
[311167777,1704958241469,-59823.29823716,0.00029287,2]
[311167778,1704958241479,-6491.16491185,0.00029287,3]
[311167779,1704958241488,-34387.15033615,0.00029287,3]
[311167780,1704958241498,-11816.44904551,0.00029287,3]
[311167781,1704958241507,-500.0,0.00029315,2]
[311167782,1704958241516,-620.01277345,0.00029395,2]
[311167783,1704958241525,-500.0,0.00029452,2]
[311167784,1704958241535,-500.0,0.00029589,2]
[311167785,1704958241545,-1500.0,0.000296,2]
[311167786,1704958241555,-154.86783505,0.0002962,2]
[311167787,1704958241564,-152.31502045,0.00029626,2]
[311167788,1704958241573,-200.0,0.000297,4]
[311167789,1704958241583,-154.86783505,0.00029718,2]
[311167790,1704958241592,-932.53731829,0.00029724,2]
[311167791,1704958241601,-500.0,0.00029726,2]
[311167792,1704958241610,-150.96980604,0.00029727,2]
[311167793,1704958241619,-151.2478173,0.00029729,2]
[311167794,1704958241629,-242.90501079,0.0002976,4]
[311167795,1704958241638,-154.86783505,0.00029765,2]
[311167796,1704958241647,-500.0,0.00029863,2]
[311167797,1704958241656,-153.89428806,0.00029898,2]
[311167798,1704958241665,-14385.00802478,0.00029899,2]
[311167799,1704958241674,-45809.62386806,0.000299,2]
[311167800,1704958241806,-10202.84952288,0.000299,2]
[311167801,1704958241818,-97700.79614781,0.000299,2]
[311167802,1704958241827,-151.0,0.000299,2]
[311167803,1704958241836,-5667.97844355,0.000299,5]
[311167804,1704958241846,-165.40309687,0.000299,2]
[311167805,1704958241855,-151.58184753,0.0002994,2]
[311167806,1704958241865,-166.81952113,0.00029997,2]
[311167807,1704958241874,-512.08937232,0.00029997,2]
[311167808,1704958241883,-224.87458001,0.00029997,2]
[311167809,1704958241892,-279.62969661,0.00029998,2]
[311167810,1704958241901,-3061.21667734,0.00029998,2]
[311167811,1704958241910,-1034.3805318,0.00029998,2]
[311167812,1704958241920,-1951.52064673,0.00029998,2]
[311167813,1704958241929,-914.09173823,0.00029999,2]
[311167814,1704958241938,-5137.77250731,0.00029999,2]
[311167815,1704958241949,-261.71556348,0.00029999,2]
[311167816,1704958241959,-329.91794083,0.00029999,2]
[311167817,1704958241969,-310.88585753,0.00029999,2]
[311167818,1704958241978,-500.0,0.00029999,2]
[311167819,1704958241988,-19251.12813979,0.0003,3]
[311167820,1704958241997,-8035.64264101,0.0003,14]
[311167821,1704958242009,-32782.31038208,0.0003,10]
[311167822,1704958242018,-18553.45565274,0.0003,2]
[311167823,1704958242027,-698.89862508,0.0003,2]
[311167824,1704958242037,-223.31728336,0.0003,7]
[311167825,1704958242046,-4999.99,0.0003,2]
[311167826,1704958242055,-4999.99,0.0003,2]
[311167827,1704958242065,-5000.0,0.0003,2]
[311167828,1704958242074,-5000.0,0.0003,2]
[311167829,1704958242084,-5000.0,0.0003,2]
[311167830,1704958242093,-5000.0,0.0003,2]
[311167831,1704958242102,-5000.0,0.0003,2]
[311167832,1704958242111,-5000.0,0.0003,2]
[311167833,1704958242120,-5000.0,0.0003,2]
[311167834,1704958242129,-2439.04,0.0003,2]
[311167835,1704958242138,-155.18046676,0.0003,4]
[311167836,1704958242147,-163.55638359,0.0003,5]
[311167837,1704958242157,-1200.0,0.0003,4]
[311167838,1704958242165,-639.80669723,0.0003,4]
[311167839,1704958242174,-500.0,0.0003,7]
[311167840,1704958242184,-500.0,0.0003,7]
[311167841,1704958242193,-500.0,0.0003,7]
[311167842,1704958242202,-500.0,0.0003,7]
[311167843,1704958242211,-500.0,0.0003,7]
[311167844,1704958242221,-500.0,0.0003,7]
[311167845,1704958242230,-500.0,0.0003,7]
[311167846,1704958242240,-500.0,0.0003,7]
[311167847,1704958242250,-500.0,0.0003,7]
[311167848,1704958242259,-500.0,0.0003,7]
[311167849,1704958242268,-500.0,0.0003,7]
[311167850,1704958242277,-31920.09410148,0.0003,4]
[311167851,1704958242287,-500.0,0.0003,7]
[311167852,1704958242297,-562.12,0.0003,7]
[311167853,1704958242312,-11908.01427053,0.0003,5]
[311167854,1704958242322,-3800.0,0.0003,2]
[311167855,1704958242331,-15040.88068289,0.0003,4]
[311167856,1704958242340,-274.65236064,0.0003,7]
[311167857,1704958242349,-6975.26133049,0.0003,4]
[311167858,1704958242358,-1554.3169407,0.0003,4]
[311167859,1704958242368,-463.46661998,0.0003,4]
[311167860,1704958242377,-686.8051383,0.0003,4]
[311167861,1704958242389,-236.54101658,0.0003,7]
[311167862,1704958242398,-601.21072826,0.0003,2]
[311167863,1704958242407,-4452.61455502,0.0003,4]
[311167864,1704958242417,-585.54897925,0.0003,2]
[311167865,1704958242426,-2000.0,0.0003,2]
[311167866,1704958242435,-3307.3259689,0.0003,4]
[311167867,1704958242444,-1155.181581,0.0003,2]
[311167868,1704958242453,-1155.181581,0.0003,2]
[311167869,1704958242461,-5518.496776,0.0003,2]
[311167870,1704958242471,-5518.496776,0.0003,2]
[311167871,1704958242480,-275.0,0.0003,2]
[311167872,1704958242489,-2000.0,0.0003001,2]
[311167873,1704958242498,-2000.0,0.0003002,2]
[311167874,1704958242508,-2000.0,0.0003003,2]
[311167875,1704958242520,-1318.1772712,0.00030033,4]
[311167876,1704958242529,-38379.93475574,0.00030036,3]
[311167877,1704958242538,-2000.0,0.0003004,2]
[311167878,1704958242547,-2000.0,0.0003005,2]
[311167879,1704958242556,-2000.0,0.0003006,2]
[311167880,1704958242564,-2000.0,0.0003007,2]
[311167881,1704958242573,-2000.0,0.0003008,2]
[311167882,1704958242582,-2000.0,0.0003009,2]
[311167883,1704958242591,-2000.0,0.000301,2]
[311167884,1704958242600,-2000.0,0.000301,2]
[311167885,1704958242609,-2000.0,0.0003011,2]
[311167886,1704958242618,-2000.0,0.0003011,2]
[311167887,1704958242627,-2000.0,0.0003012,2]
[311167888,1704958242636,-2000.0,0.0003012,2]
[311167889,1704958242645,-197.37626976,0.0003013,2]
[311167890,1704958242654,-2000.0,0.0003013,2]
[311167891,1704958242664,-2000.0,0.0003013,2]
[311167892,1704958242673,-184.27108784,0.00030134,4]
[311167893,1704958242682,-309.62844586,0.00030134,4]
[311167894,1704958242691,-878.43756721,0.00030135,4]
[311167895,1704958242700,-158.25059054,0.00030135,4]
[311167896,1704958242709,-444.27062889,0.00030135,4]
[311167897,1704958242718,-160.0,0.00030135,10]
[311167898,1704958242726,-192.014833,0.00030136,2]
[311167899,1704958242735,-192.014833,0.00030136,2]
[311167900,1704958242744,-192.014833,0.00030136,2]
[311167901,1704958242757,-192.014833,0.00030136,2]
[311167902,1704958242853,-1155.181581,0.00030136,2]
[311167903,1704958242863,-1155.181581,0.00030136,2]
[311167904,1704958242872,-1155.181581,0.00030136,2]
[311167905,1704958242881,-1155.181581,0.00030136,2]
[311167906,1704958242890,-5518.496776,0.00030136,2]
[311167907,1704958242899,-5518.496776,0.00030136,2]
[311167908,1704958242908,-5518.496776,0.00030136,2]
[311167909,1704958242917,-5518.496776,0.00030136,2]
[311167910,1704958242926,-500.0,0.00030136,2]
[311167911,1704958242935,-500.0,0.00030136,2]
[311167912,1704958242944,-500.0,0.00030136,2]
[311167913,1704958242954,-500.0,0.00030136,2]
[311167914,1704958242962,-500.0,0.00030136,2]
[311167915,1704958242971,-500.0,0.00030136,2]
[311167916,1704958242981,-412.25216866,0.00030136,2]
[311167917,1704958242990,-593.4206134,0.00030136,2]
[311167918,1704958242999,-500.81343408,0.00030136,2]
[311167919,1704958243008,-500.0,0.00030136,2]
[311167920,1704958243018,-500.0,0.00030136,2]
[311167921,1704958243027,-500.0,0.00030136,2]
[311167922,1704958243036,-500.0,0.00030136,2]
[311167923,1704958243045,-500.0,0.00030136,2]
[311167924,1704958243054,-500.0,0.00030136,2]
[311167925,1704958243063,-594.76805938,0.00030136,2]
[311167926,1704958243072,-500.0,0.00030136,2]
[311167927,1704958243081,-500.0,0.00030136,2]
[311167928,1704958243090,-200.0,0.00030136,2]
[311167929,1704958243099,-500.0,0.00030136,2]
[311167930,1704958243108,-500.0,0.00030136,2]
[311167931,1704958243118,-500.0,0.00030136,2]
[311167932,1704958243127,-500.0,0.00030136,2]
[311167933,1704958243136,-500.0,0.00030136,2]
[311167934,1704958243146,-500.0,0.00030136,2]
[311167935,1704958243155,-500.0,0.00030136,2]
[311167936,1704958243164,-500.0,0.00030136,2]
[311167937,1704958243173,-421.07384829,0.00030136,2]
[311167938,1704958243182,-226.98517404,0.00030136,2]
[311167939,1704958243191,-500.0,0.00030136,2]
[311167940,1704958243201,-500.0,0.00030136,2]
[311167941,1704958243210,-500.0,0.00030136,2]
[311167942,1704958243219,-418.33957218,0.00030136,2]
[311167943,1704958243228,-500.0,0.00030136,2]
[311167944,1704958243237,-642.73342,0.00030136,2]
[311167945,1704958243246,-498.4439831,0.00030136,2]
[311167946,1704958243256,-500.0,0.00030136,2]
[311167947,1704958243265,-500.0,0.00030136,2]
[311167948,1704958243274,-270.6920062,0.00030136,2]
[311167949,1704958243283,-277.54315261,0.00030136,2]
[311167950,1704958243292,-500.0,0.00030136,2]
[311167951,1704958243301,-500.0,0.00030136,2]
[311167952,1704958243310,-315.45310074,0.00030136,2]
[311167953,1704958243320,-384.12539335,0.00030136,2]
[311167954,1704958243329,-511.70322812,0.00030136,2]
[311167955,1704958243338,-1000.0,0.00030136,2]
[311167956,1704958243347,-500.0,0.00030136,2]
[311167957,1704958243357,-500.0,0.00030136,2]
[311167958,1704958243366,-329.4052217,0.00030136,2]
[311167959,1704958243375,-500.40558924,0.00030136,2]
[311167960,1704958243384,-500.0,0.00030136,2]
[311167961,1704958243393,-500.53909396,0.00030136,2]
[311167962,1704958243402,-500.0,0.00030136,2]
[311167963,1704958243411,-500.0,0.00030136,2]
[311167964,1704958243420,-1215.22,0.00030136,2]
[311167965,1704958243429,-345.71155924,0.00030136,2]
[311167966,1704958243439,-500.0,0.00030136,2]
[311167967,1704958243448,-500.0,0.00030136,2]
[311167968,1704958243457,-500.0,0.00030136,2]
[311167969,1704958243467,-500.0,0.00030136,2]
[311167970,1704958243476,-500.0,0.00030136,2]
[311167971,1704958243486,-508.57057146,0.00030136,2]
[311167972,1704958243495,-500.0,0.00030136,2]
[311167973,1704958243505,-500.0,0.00030136,2]
[311167974,1704958243515,-860.89,0.00030136,2]
[311167975,1704958243524,-500.0,0.00030136,2]
[311167976,1704958243533,-500.0,0.00030136,2]
[311167977,1704958243542,-500.0,0.00030136,2]
[311167978,1704958243552,-500.0,0.00030136,2]
[311167979,1704958243561,-500.0,0.00030136,2]
[311167980,1704958243570,-500.0,0.00030136,2]
[311167981,1704958243579,-500.0,0.00030136,2]
[311167982,1704958243588,-500.0,0.00030136,2]
[311167983,1704958243598,-500.0,0.00030136,2]
[311167984,1704958243607,-500.0,0.00030136,2]
[311167985,1704958243617,-303.4997889,0.00030136,2]
[311167986,1704958243626,-500.0,0.00030136,2]
[311167987,1704958243635,-1932.96,0.00030136,2]
[311167988,1704958243644,-500.0,0.00030136,2]
[311167989,1704958243654,-500.0,0.00030136,2]
[311167990,1704958243663,-500.0,0.00030136,2]
[311167991,1704958243672,-500.0,0.00030136,2]
[311167992,1704958243681,-500.0,0.00030136,2]
[311167993,1704958243690,-773.24,0.00030136,2]
[311167994,1704958243699,-500.0,0.00030136,2]
[311167995,1704958243708,-500.0,0.00030136,2]
[311167996,1704958243717,-501.07299609,0.00030136,2]
[311167997,1704958243726,-501.00207667,0.00030136,2]
[311167998,1704958243735,-500.0,0.00030136,2]
[311167999,1704958243745,-500.0,0.00030136,2]
[311168000,1704958243755,-500.0,0.00030136,2]
[311168001,1704958243764,-500.0,0.00030136,2]
[311168002,1704958243772,-500.0,0.00030136,2]
[311168004,1704958243782,-500.0,0.00030136,2]
[311168006,1704958243792,-500.0,0.00030136,2]
[311168008,1704958243801,-500.0,0.00030136,2]
[311168010,1704958243810,-500.0,0.00030136,2]
[311168012,1704958243819,-500.0,0.00030136,2]
[311168014,1704958243829,-500.0,0.00030136,2]
[311168016,1704958243838,-500.0,0.00030136,2]
[311168018,1704958243847,-500.0,0.00030136,2]
[311168020,1704958243856,-500.0,0.00030136,2]
[311168022,1704958243865,-500.0,0.00030136,2]
[311168024,1704958243874,-500.0,0.00030136,2]
[311168026,1704958243883,-500.0,0.00030136,2]
[311168028,1704958243892,-500.0,0.00030136,2]
[311168029,1704958243902,-500.0,0.00030136,2]
[311168033,1704958243911,-341.22,0.00030136,2]
[311168036,1704958243920,-500.0,0.00030136,2]
[311168039,1704958243928,-500.0,0.00030136,2]
[311168042,1704958243936,-500.0,0.00030136,2]
[311168045,1704958243945,-500.0,0.00030136,2]
[311168047,1704958243954,-500.0,0.00030136,2]
[311168049,1704958243963,-521.24,0.00030136,2]
[311168050,1704958243972,-186.76567446,0.00030136,2]
[311168053,1704958243981,-496.52210292,0.00030136,2]
[311168055,1704958243990,-500.0,0.00030136,2]
[311168056,1704958244000,-1874.21,0.00030136,2]
[311168057,1704958244010,-507.68147259,0.00030136,2]
[311168058,1704958244019,-500.0,0.00030136,2]
[311168060,1704958244027,-502.49872204,0.00030136,2]
[311168061,1704958244036,-502.0635084,0.00030136,2]
[311168062,1704958244045,-500.0,0.00030136,2]
[311168063,1704958244054,-500.0,0.00030136,2]
[311168064,1704958244063,-500.0,0.00030136,2]
[311168065,1704958244072,-625.13,0.00030136,2]
[311168066,1704958244081,-500.0,0.00030136,2]
[311168067,1704958244090,-500.0,0.00030136,2]
[311168069,1704958244100,-500.0,0.00030136,2]
[311168071,1704958244110,-500.0,0.00030136,2]
[311168072,1704958244119,-500.0,0.00030136,2]
[311168073,1704958244128,-500.0,0.00030136,2]
[311168074,1704958244137,-500.0,0.00030136,2]
[311168075,1704958244146,-500.0,0.00030136,2]
[311168076,1704958244156,-500.0,0.00030136,2]
[311168077,1704958244164,-500.0,0.00030136,2]
[311168078,1704958244174,-500.0,0.00030136,2]
[311168079,1704958244183,-500.0,0.00030136,2]
[311168080,1704958244193,-500.0,0.00030136,2]
[311168081,1704958244202,-500.0,0.00030136,2]
[311168082,1704958244211,-500.0,0.00030136,2]
[311168083,1704958244221,-156.58977598,0.00030136,2]
[311168084,1704958244231,-500.0,0.00030136,2]
[311168085,1704958244240,-500.0,0.00030136,2]
[311168086,1704958244251,-500.0,0.00030136,2]
[311168087,1704958244259,-474.98127692,0.00030136,2]
[311168088,1704958244269,-500.0,0.00030136,2]
[311168089,1704958244279,-500.0,0.00030136,2]
[311168090,1704958244288,-500.0,0.00030136,2]
[311168091,1704958244297,-500.0,0.00030136,2]
[311168092,1704958244310,-500.0,0.00030136,2]
[311168093,1704958244319,-500.0,0.00030136,2]
[311168094,1704958244328,-501.28748838,0.00030136,2]
[311168095,1704958244337,-225.87099317,0.00030136,2]
[311168096,1704958244347,-500.0,0.00030136,2]
[311168097,1704958244357,-528.62,0.00030136,2]
[311168098,1704958244366,-500.0,0.00030136,2]
[311168099,1704958244375,-500.0,0.00030136,2]
[311168100,1704958244385,-500.0,0.00030136,2]
[311168101,1704958244394,-500.0,0.00030136,2]
[311168102,1704958244404,-500.0,0.00030136,2]
[311168103,1704958244414,-500.0,0.00030136,2]
[311168104,1704958244424,-590.53,0.00030136,2]
[311168105,1704958244433,-500.0,0.00030136,2]
[311168106,1704958244442,-500.0,0.00030136,2]
[311168108,1704958244451,-500.0,0.00030136,2]
[311168109,1704958244461,-203.6129773,0.00030136,2]
[311168110,1704958244471,-500.0,0.00030136,2]
[311168111,1704958244480,-500.0,0.00030136,2]
[311168112,1704958244489,-500.0,0.00030136,2]
[311168113,1704958244500,-500.0,0.00030136,2]
[311168114,1704958244510,-1011.98987962,0.00030136,5]
[311168115,1704958244519,-500.0,0.00030136,2]
[311168116,1704958244528,-500.0,0.00030136,2]
[311168117,1704958244537,-500.0,0.00030136,2]
[311168118,1704958244547,-230.84334159,0.00030136,2]
[311168119,1704958244556,-500.0,0.00030136,2]
[311168121,1704958244565,-500.0,0.00030136,2]
[311168123,1704958244574,-500.0,0.00030136,2]
[311168124,1704958244584,-500.0,0.00030136,2]
[311168125,1704958244593,-500.0,0.00030136,2]
[311168126,1704958244602,-506.61528026,0.00030136,2]
[311168128,1704958244612,-500.0,0.00030136,2]
[311168130,1704958244621,-500.0,0.00030136,2]
[311168131,1704958244630,-500.0,0.00030136,2]
[311168132,1704958244639,-688.78,0.00030136,2]
[311168133,1704958244648,-500.0,0.00030136,2]
[311168134,1704958244657,-503.58951004,0.00030136,2]
[311168135,1704958244743,-501.71505384,0.00030136,2]
[311168137,1704958244754,-500.0,0.00030136,2]
[311168139,1704958244763,-500.0,0.00030136,2]
[311168141,1704958244772,-500.0,0.00030136,2]
[311168142,1704958244782,-500.0,0.00030136,2]
[311168145,1704958244791,-505.49538568,0.00030136,2]
[311168148,1704958244799,-500.0,0.00030136,2]
[311168150,1704958244809,-500.0,0.00030136,2]
[311168152,1704958244818,-500.0,0.00030136,2]
[311168154,1704958244827,-500.0,0.00030136,2]
[311168156,1704958244837,-503.18365884,0.00030136,2]
[311168158,1704958244846,-500.0,0.00030136,2]
[311168160,1704958244855,-500.0,0.00030136,2]
[311168161,1704958244864,-500.0,0.00030136,2]
[311168163,1704958244873,-507.36864681,0.00030136,2]
[311168165,1704958244882,-500.0,0.00030136,2]
[311168166,1704958244891,-503.53888354,0.00030136,2]
[311168167,1704958244900,-500.0,0.00030136,2]
[311168168,1704958244909,-823.01,0.00030136,2]
[311168169,1704958244918,-500.0,0.00030136,2]
[311168171,1704958244926,-500.0,0.00030136,2]
[311168173,1704958244936,-500.0,0.00030136,2]
[311168175,1704958244945,-500.0,0.00030136,2]
[311168176,1704958244954,-500.0,0.00030136,2]
[311168177,1704958244963,-500.0,0.00030136,2]
[311168178,1704958244972,-500.0,0.00030136,2]
[311168179,1704958244981,-623.42,0.00030136,2]
[311168180,1704958244991,-500.0,0.00030136,2]
[311168181,1704958245002,-500.0,0.00030136,2]
[311168182,1704958245011,-500.0,0.00030136,2]
[311168183,1704958245019,-500.0,0.00030136,2]
[311168184,1704958245028,-500.0,0.00030136,2]
[311168185,1704958245037,-500.0,0.00030136,2]
[311168186,1704958245046,-500.0,0.00030136,2]
[311168187,1704958245056,-500.0,0.00030136,2]
[311168188,1704958245065,-500.0,0.00030136,2]
[311168189,1704958245075,-500.0,0.00030136,2]
[311168190,1704958245085,-500.0,0.00030136,2]
[311168191,1704958245094,-500.0,0.00030136,2]
[311168192,1704958245104,-500.0,0.00030136,2]
[311168193,1704958245113,-500.0,0.00030136,2]
[311168194,1704958245122,-500.0,0.00030136,2]
[311168195,1704958245131,-330.37774473,0.00030136,2]
[311168196,1704958245141,-573.20229012,0.00030136,2]
[311168197,1704958245150,-500.0,0.00030136,2]
[311168198,1704958245160,-500.0,0.00030136,2]
[311168199,1704958245170,-503.69029425,0.00030136,2]